bitfinex-derivatives/quotes_BTCF0:USTF0_20240929
["timestamp","ask_amount","ask_price","bid_price","bid_amount"]
[1727594126453,0.186225,65585.0,65583.0,0.3608]
[1727594126968,0.187225,65585.0,65583.0,0.3608]
[1727594127467,0.076226,65584.0,65583.0,0.3608]
[1727594127770,0.186226,65584.0,65583.0,0.3608]
[1727594129568,0.187226,65584.0,65583.0,0.3608]
[1727594134669,0.187226,65584.0,65582.0,0.02688456]
[1727594134873,0.187226,65584.0,65583.0,0.3608]
[1727594137279,0.186226,65584.0,65583.0,0.3608]
[1727594137471,0.187226,65584.0,65583.0,0.3608]
[1727594138577,0.186226,65584.0,65583.0,0.3608]
[1727594138782,0.187226,65584.0,65583.0,0.3608]
[1727594141081,0.076228,65583.0,65581.0,0.16574563]
[1727594141281,0.166228,65583.0,65582.0,0.3608]
[1727594142280,0.166228,65583.0,65581.0,0.16574563]
[1727594142583,0.166228,65583.0,65582.0,0.3608]
[1727594144482,0.166228,65583.0,65582.0,0.40654563]
[1727594144881,0.166228,65583.0,65582.0,0.3608]
[1727594145084,0.167228,65583.0,65582.0,0.3608]
[1727594151599,0.167228,65583.0,65582.0,0.36853208]
[1727594152306,0.167228,65583.0,65582.0,0.42952588]
[1727594154309,0.167228,65583.0,65582.0,0.4217938]
[1727594156398,0.167228,65583.0,65582.0,0.3608]
[1727594157305,0.167228,65583.0,65582.0,0.42180871]
[1727594160203,0.167228,65583.0,65582.0,0.3608]
[1727594160597,0.167228,65583.0,65582.0,0.42181899]
[1727594160802,0.167228,65583.0,65582.0,0.42181852]
[1727594161113,0.167228,65583.0,65582.0,0.42181839]
[1727594161310,0.167228,65583.0,65582.0,0.3608]
[1727594168213,0.167228,65583.0,65582.0,0.40656223]
[1727594169516,0.167228,65583.0,65582.0,0.3608]
[1727594182322,0.167228,65583.0,65582.0,0.40656223]
[1727594183314,0.167228,65583.0,65582.0,0.3608]
[1727594183719,0.167228,65583.0,65582.0,0.40656236]
[1727594188318,0.167228,65583.0,65582.0,0.3608]
[1727594188513,0.091,65583.0,65582.0,0.52656263]
[1727594190324,0.091,65583.0,65582.0,0.4808]
[1727594197635,0.091,65583.0,65582.0,0.3608]
[1727594197833,0.091,65583.0,65582.0,0.4808]
[1727594205438,0.091,65583.0,65582.0,0.52654858]
[1727594206441,0.091,65583.0,65582.0,0.16574858]
[1727594206635,0.091,65583.0,65582.0,0.52654858]
[1727594208546,0.167227,65583.0,65582.0,0.52654858]
[1727594211341,0.167227,65583.0,65582.0,0.40654858]
[1727594211542,0.167227,65583.0,65582.0,0.52654858]
[1727594212548,0.167227,65583.0,65582.0,0.4808]
[1727594216440,0.091,65583.0,65582.0,0.65611541]
[1727594220445,0.091,65583.0,65582.0,0.70187152]
[1727594220641,0.091,65583.0,65582.0,0.65611541]
[1727594221152,0.091,65583.0,65582.0,0.70187147]
[1727594221446,0.091,65583.0,65582.0,0.65611541]
[1727594225056,0.091,65583.0,65582.0,0.70187267]
[1727594225353,0.091,65583.0,65582.0,0.65611541]
[1727594225849,0.091,65583.0,65582.0,0.65711541]
[1727594227451,0.09,65583.0,65582.0,0.65711541]
[1727594229756,0.09,65583.0,65582.0,0.65611541]
[1727594230649,0.091,65583.0,65582.0,0.65611541]
[1727594239469,0.091,65583.0,65582.0,0.29531541]
[1727594239765,0.091,65583.0,65582.0,0.65611541]
[1727594239954,0.091,65583.0,65582.0,0.29531541]
[1727594240258,0.091,65583.0,65582.0,0.65611541]
[1727594240759,0.091,65583.0,65582.0,0.29531541]
[1727594240958,0.091,65583.0,65582.0,0.65611541]
[1727594248562,0.091,65583.0,65582.0,0.65711541]
[1727594249564,0.09,65583.0,65582.0,0.65711541]
[1727594249861,0.09,65583.0,65582.0,0.65611541]
[1727594253155,0.09,65583.0,65582.0,0.65711541]
[1727594254965,0.091,65583.0,65582.0,0.65611541]
[1727594256864,0.091,65583.0,65582.0,0.53611541]
[1727594257665,0.091,65583.0,65582.0,0.61234341]
[1727594261669,0.091,65583.0,65582.0,0.61334341]
[1727594263268,0.09,65583.0,65582.0,0.61334341]
[1727594282586,0.09,65583.0,65582.0,0.25254341]
[1727594282777,0.09,65583.0,65582.0,0.61334341]
[1727594285085,0.09,65583.0,65582.0,0.68954674]
[1727594290193,0.09,65583.0,65582.0,0.61334341]
[1727594291190,0.09,65583.0,65582.0,0.68954674]
[1727594295281,0.09,65583.0,65582.0,0.67435611]
[1727594297695,0.09,65583.0,65582.0,0.31355611]
[1727594297996,0.09,65583.0,65582.0,0.61334341]
[1727594298799,0.09,65583.0,65582.0,0.67435611]
[1727594301089,0.09,65583.0,65582.0,0.61334341]
[1727594301993,0.09,65583.0,65582.0,0.67435611]
[1727594302197,0.09,65583.0,65582.0,0.78345469]
[1727594306799,0.09,65583.0,65582.0,0.78349676]
[1727594309808,0.09,65583.0,65582.0,0.42269676]
[1727594310004,0.09,65583.0,65582.0,0.78349676]
[1727594310398,0.09,65583.0,65582.0,0.67435203]
[1727594316805,0.09,65583.0,65582.0,0.61334341]
[1727594317506,0.09,65583.0,65582.0,0.70727951]
[1727594318507,0.09,65583.0,65582.0,0.78353883]
[1727594321313,0.09,65583.0,65582.0,0.78336565]
[1727594325317,0.09,65583.0,65582.0,0.61334341]
[1727594332009,0.0344,65592.0,65591.0,0.076218]
[1727594332222,0.04,65592.0,65591.0,0.60277384]
[1727594332515,0.04,65592.0,65591.0,0.73307946]
[1727594333621,0.04,65592.0,65591.0,0.73407946]
[1727594333924,0.04,65592.0,65591.0,0.81033878]
[1727594334420,0.04,65592.0,65591.0,0.90354432]
[1727594334622,0.04,65592.0,65591.0,0.73407946]
[1727594336027,0.04,65592.0,65591.0,0.37327946]
[1727594336226,0.04,65592.0,65591.0,1.09487946]
[1727594337834,0.041,65592.0,65591.0,0.37427946]
[1727594338024,0.041,65592.0,65591.0,1.09587946]
[1727594338421,0.041,65592.0,65591.0,0.37427946]
[1727594338622,0.041,65592.0,65591.0,1.09587946]
[1727594340532,0.041,65592.0,65591.0,1.12379402]
[1727594342227,0.041,65592.0,65591.0,0.40219402]
[1727594342623,0.041,65592.0,65591.0,1.12379402]
[1727594344028,0.041,65592.0,65591.0,0.40219402]
[1727594344230,0.041,65592.0,65591.0,1.12379402]
[1727594344536,0.041,65592.0,65591.0,0.40219402]
[1727594344730,0.041,65592.0,65591.0,1.12379402]
[1727594345036,0.041,65592.0,65591.0,0.40219402]
[1727594345229,0.041,65592.0,65591.0,1.12379402]
[1727594347740,0.041,65592.0,65591.0,0.40219402]
[1727594348041,0.041,65592.0,65591.0,1.12379402]
[1727594348835,0.041,65592.0,65591.0,0.40219402]
[1727594349141,0.041,65592.0,65591.0,1.12379402]
[1727594349337,0.041,65592.0,65591.0,1.18467246]
[1727594350535,0.041,65592.0,65591.0,0.46307246]
[1727594350742,0.041,65592.0,65591.0,1.18467246]
[1727594351529,0.041,65592.0,65591.0,0.46307246]
[1727594351733,0.041,65592.0,65591.0,1.18467246]
[1727594356736,0.041,65592.0,65591.0,1.12379402]
[1727594360946,0.011,65592.0,65591.0,1.12379402]
[1727594361754,0.011,65592.0,65591.0,1.29313639]
[1727594361943,0.001,65592.0,65591.0,1.21692329]
[1727594362448,0.001,65592.0,65591.0,1.12379402]
[1727594362749,0.011,65592.0,65591.0,1.12379402]
[1727594370347,0.011,65592.0,65591.0,1.21697392]
[1727594379253,0.011,65592.0,65591.0,1.29319744]
[1727594380049,0.011,65592.0,65591.0,0.85617392]
[1727594383065,0.011,65592.0,65591.0,0.9323971]
[1727594383464,0.011,65592.0,65591.0,0.85617392]
[1727594383770,0.011,65592.0,65591.0,0.93238861]
[1727594385559,0.011,65592.0,65591.0,0.82396126]
[1727594385764,0.011,65592.0,65591.0,0.70396126]
[1727594385961,0.011,65592.0,65591.0,0.82396126]
[1727594386267,0.011,65592.0,65591.0,0.68677602]
[1727594386655,0.011,65592.0,65591.0,0.73250436]
[1727594387372,0.011,65592.0,65591.0,0.75633561]
[1727594387573,0.011,65592.0,65591.0,0.78016706]
[1727594389675,0.011,65592.0,65591.0,0.73250436]
[1727594389881,0.011,65592.0,65591.0,0.61250436]
[1727594390069,0.011,65592.0,65591.0,0.68677602]
[1727594390679,0.087217,65592.0,65591.0,0.68677602]
[1727594392472,0.087217,65592.0,65591.0,0.74774326]
[1727594392667,0.087217,65592.0,65591.0,0.38694326]
[1727594392978,0.087217,65592.0,65591.0,0.74774326]
[1727594400476,0.087217,65592.0,65591.0,0.73246846]
[1727594400986,0.087217,65592.0,65591.0,0.68677602]
[1727594401174,0.087217,65592.0,65591.0,0.73246846]
[1727594401577,0.087217,65592.0,65591.0,0.68677602]
[1727594403383,0.011,65592.0,65591.0,0.68677602]
[1727594411184,0.087217,65592.0,65591.0,0.68677602]
[1727594411591,0.087217,65592.0,65591.0,0.56677602]
[1727594411790,1.264577,65592.0,65591.0,0.002]
[1727594411983,1.264577,65592.0,65587.0,0.04929203]
[1727594411984,1.18836,65592.0,65587.0,0.04929203]
[1727594412288,0.076222,65588.0,65587.0,0.0036]
[1727594412491,0.076224,65586.0,65585.0,0.04569203]
[1727594412692,0.186224,65586.0,65584.0,0.04569203]
[1727594413193,0.186224,65586.0,65579.0,0.08394485]
[1727594413194,0.45744,65585.0,65579.0,0.0609359]
[1727594413382,0.45744,65585.0,65573.0,0.0041]
[1727594413383,0.12,65582.0,65574.0,0.0036]
[1727594413582,0.12,65582.0,65577.0,0.00228704]
[1727594413583,0.12,65579.0,65577.0,0.00228704]
[1727594413792,0.12,65579.0,65572.0,0.12]
[1727594413793,0.076239,65573.0,65572.0,0.12]
[1727594414090,0.176239,65573.0,65572.0,0.12]
[1727594416702,0.176239,65573.0,65572.0,0.4808]
[1727594418491,0.176239,65573.0,65572.0,0.4908]
[1727594418801,0.176239,65573.0,65572.0,0.13]
[1727594419314,0.176239,65573.0,65572.0,0.142]
[1727594436223,0.176239,65573.0,65572.0,0.022]
[1727594447718,0.296239,65573.0,65572.0,0.022]
[1727594448219,0.176239,65573.0,65572.0,0.022]
[1727594448621,0.296239,65573.0,65572.0,0.022]
[1727594448819,0.076245,65568.0,65567.0,0.0036]
[1727594449129,0.076245,65568.0,65561.0,0.0072]
[1727594449130,0.076252,65562.0,65561.0,0.0072]
[1727594449325,0.076252,65562.0,65559.0,0.3608]
[1727594449326,0.076254,65560.0,65559.0,0.3608]
[1727594449518,0.186254,65560.0,65559.0,0.3608]
[1727594451524,0.547054,65560.0,65558.0,0.00228774]
[1727594451831,0.5776,65559.0,65555.0,0.0036]
[1727594452031,0.076263,65553.0,65551.0,0.3644]
[1727594452221,0.186263,65553.0,65551.0,0.3608]
[1727594452416,0.186263,65553.0,65548.0,0.12]
[1727594452417,0.076264,65552.0,65548.0,0.12]
[1727594452622,0.186264,65552.0,65548.0,0.12]
[1727594452821,0.182264,65552.0,65548.0,0.12]
[1727594453030,0.076265,65551.0,65548.0,0.12]
[1727594453324,0.186265,65551.0,65548.0,0.12]
[1727594455232,0.076266,65550.0,65548.0,0.12]
[1727594455531,0.186266,65550.0,65548.0,0.12]
[1727594456121,0.186266,65550.0,65548.0,0.14735589]
[1727594457431,0.163266,65550.0,65548.0,0.14735589]
[1727594458634,0.164266,65550.0,65548.0,0.16135589]
[1727594458824,0.165266,65550.0,65548.0,0.16735589]
[1727594463029,0.165266,65550.0,65548.0,0.04735589]
[1727594463239,0.076269,65547.0,65546.0,0.0036]
[1727594463427,0.076274,65543.0,65542.0,0.0036]
[1727594463624,0.076277,65540.0,65539.0,0.12]
[1727594463824,0.176277,65540.0,65539.0,0.12]
[1727594464022,0.176277,65540.0,65539.0,0.29022903]
[1727594464325,0.296277,65540.0,65539.0,0.17022903]
[1727594464633,0.07628,65538.0,65537.0,0.00588852]
[1727594464837,0.18628,65538.0,65537.0,0.00228852]
[1727594465042,0.18428,65538.0,65537.0,0.00228852]
[1727594465335,0.30428,65538.0,65537.0,0.00228852]
[1727594465542,0.18428,65538.0,65537.0,0.00228852]
[1727594466040,0.18528,65538.0,65537.0,0.00428852]
[1727594466224,0.18528,65538.0,65537.0,0.002]
[1727594468335,0.18628,65538.0,65537.0,0.002]
[1727594470638,0.112,65538.0,65537.0,0.002]
[1727594472644,0.112,65538.0,65537.0,0.122]
[1727594474037,0.112,65538.0,65537.0,0.1542]
[1727594477643,0.112,65538.0,65537.0,0.31513041]
[1727594478950,0.112,65538.0,65537.0,0.39141141]
[1727594479852,0.112,65538.0,65537.0,0.75221141]
[1727594482740,0.112,65538.0,65537.0,0.63221141]
[1727594489356,0.112,65538.0,65537.0,0.80233348]
[1727594490659,0.112,65538.0,65537.0,0.72611879]
[1727594492261,0.112,65538.0,65537.0,0.81756279]
[1727594495967,0.112,65538.0,65537.0,0.45676279]
[1727594496162,0.112,65538.0,65537.0,0.81756279]
[1727594498156,0.112,65538.0,65537.0,0.45676279]
[1727594498362,0.112,65538.0,65537.0,0.81756279]
[1727594499763,0.112,65538.0,65537.0,0.45676279]
[1727594499954,0.112,65538.0,65537.0,0.81756279]
[1727594500350,0.112,65538.0,65537.0,0.72611879]
[1727594500563,0.112,65538.0,65537.0,0.69391879]
[1727594500763,0.112,65538.0,65537.0,0.81391879]
[1727594501761,0.112,65538.0,65537.0,0.45311879]
[1727594502264,0.112,65538.0,65537.0,0.81399457]
[1727594507370,0.112,65538.0,65537.0,0.90554933]
[1727594507580,0.112,65538.0,65537.0,0.54474933]
[1727594507766,0.112,65538.0,65537.0,0.90554933]
[1727594507966,0.112,65538.0,65537.0,0.54474933]
[1727594508377,0.112,65538.0,65537.0,0.90554933]
[1727594508875,0.112,65538.0,65537.0,0.54474933]
[1727594509266,0.112,65538.0,65537.0,0.90554933]
[1727594509878,0.112,65538.0,65537.0,0.54474933]
[1727594510268,0.112,65538.0,65537.0,0.90554933]
[1727594511477,0.112,65538.0,65537.0,0.54474933]
[1727594511681,0.112,65538.0,65537.0,0.90557191]
[1727594512678,0.112,65538.0,65537.0,0.92607757]
[1727594512890,0.112,65538.0,65537.0,0.56527757]
[1727594513094,0.112,65538.0,65537.0,0.92607757]
[1727594515590,0.112,65538.0,65537.0,0.80607757]
[1727594516592,0.112,65538.0,65537.0,0.44527757]
[1727594516885,0.112,65538.0,65537.0,0.69401715]
[1727594517090,0.112,65538.0,65537.0,0.80606348]
[1727594517389,0.112,65538.0,65537.0,0.80605705]
[1727594517599,0.112,65538.0,65537.0,0.80605502]
[1727594518589,0.112,65538.0,65537.0,0.69401715]
[1727594520491,0.112,65538.0,65537.0,0.33321715]
[1727594520687,0.112,65538.0,65537.0,0.6176332]
[1727594524387,1.28976,65538.0,65537.0,0.09590279]
[1727594524592,0.076284,65534.0,65533.0,0.09158135]
[1727594524787,0.306284,65534.0,65531.0,0.3608]
[1727594525288,0.534087,65533.0,65531.0,0.3608]
[1727594525491,0.076291,65528.0,65527.0,0.03137689]
[1727594525795,0.657091,65528.0,65527.0,0.06103939]
[1727594526384,1.63864,65528.0,65521.0,0.0036]
[1727594526692,0.4808,65522.0,65521.0,0.0036]
[1727594526991,0.5908,65522.0,65518.0,0.02786756]
[1727594527189,0.12,65519.0,65516.0,0.06134114]
[1727594527389,0.23,65519.0,65516.0,0.00030175]
[1727594527999,0.23,65519.0,65517.0,0.06347045]
[1727594528393,0.11,65519.0,65517.0,0.00243106]
[1727594528697,0.11,65519.0,65518.0,0.12]
[1727594528898,0.11,65519.0,65518.0,0.12243106]
[1727594530202,0.111,65519.0,65518.0,0.12243106]
[1727594530395,0.112,65519.0,65518.0,0.12243106]
[1727594536310,0.115,65519.0,65518.0,0.12243106]
[1727594537412,0.114,65519.0,65518.0,0.00243106]
[1727594537599,0.12,65519.0,65518.0,0.00243106]
[1727594544699,0.0701,65519.0,65518.0,0.12243106]
[1727594544910,0.00456,65524.0,65519.0,0.076302]
[1727594545109,0.0136,65524.0,65523.0,0.12]
[1727594545411,0.0136,65524.0,65523.0,0.29593234]
[1727594545609,0.0136,65524.0,65523.0,0.32793234]
[1727594546014,0.0136,65524.0,65523.0,0.3303634]
[1727594546915,0.0166,65524.0,65523.0,0.3303634]
[1727594547317,0.0206,65524.0,65523.0,0.3303634]
[1727594548120,0.0206,65524.0,65523.0,0.3636634]
[1727594549410,0.0226,65524.0,65523.0,0.3636634]
[1727594550504,0.0226,65524.0,65523.0,0.39127773]
[1727594551420,0.0156,65524.0,65523.0,0.39127773]
[1727594551814,0.0146,65524.0,65523.0,0.39127773]
[1727594552019,0.0156,65524.0,65523.0,0.39127773]
[1727594553519,0.0156,65524.0,65523.0,0.33231712]
[1727594554411,0.0156,65524.0,65523.0,0.27127773]
[1727594555014,0.1356,65524.0,65523.0,0.63207773]
[1727594555210,0.1356,65524.0,65523.0,0.69302111]
[1727594555421,0.1356,65524.0,65523.0,0.63207773]
[1727594556013,0.0156,65524.0,65523.0,0.63207773]
[1727594556221,0.0156,65524.0,65523.0,0.69303971]
[1727594556222,0.0146,65524.0,65523.0,0.69303971]
[1727594556419,0.0156,65524.0,65523.0,0.69303971]
[1727594557211,0.0146,65524.0,65523.0,0.65973971]
[1727594557917,0.0146,65524.0,65523.0,0.64449933]
[1727594558930,0.0136,65524.0,65523.0,0.64449933]
[1727594561237,0.0136,65524.0,65523.0,0.59877773]
[1727594562923,0.0136,65524.0,65523.0,0.64450246]
[1727594564638,0.0136,65524.0,65523.0,0.59877773]
[1727594566929,0.0136,65524.0,65523.0,0.23797773]
[1727594567126,0.0136,65524.0,65523.0,0.59877773]
[1727594567929,0.0136,65524.0,65523.0,0.23797773]
[1727594568237,0.0136,65524.0,65523.0,0.59877773]
[1727594571026,0.0136,65524.0,65523.0,0.23797773]
[1727594571232,0.0136,65524.0,65523.0,0.59877773]
[1727594572334,0.0136,65524.0,65523.0,0.67495653]
[1727594572838,0.0136,65524.0,65523.0,0.65979419]
[1727594573329,0.0136,65524.0,65523.0,0.59877773]
[1727594574929,0.0136,65524.0,65523.0,0.23797773]
[1727594575127,0.0136,65524.0,65523.0,0.59877773]
[1727594576030,0.0136,65524.0,65523.0,0.23797773]
[1727594576242,0.0136,65524.0,65523.0,0.59877773]
[1727594576428,0.0136,65524.0,65523.0,0.23797773]
[1727594576635,0.0136,65524.0,65523.0,0.59877773]
[1727594576832,0.0136,65524.0,65523.0,0.23797773]
[1727594577134,0.0136,65524.0,65523.0,0.59877773]
[1727594577937,0.0136,65524.0,65523.0,0.23797773]
[1727594578131,0.0136,65524.0,65523.0,0.59877773]
[1727594579531,0.0136,65524.0,65523.0,0.23797773]
[1727594579731,0.0136,65524.0,65523.0,0.59877773]
[1727594580940,0.0136,65524.0,65523.0,0.69186114]
[1727594581639,0.1336,65524.0,65523.0,0.65986114]
[1727594581937,0.1336,65524.0,65523.0,0.4839288]
[1727594583139,0.0136,65524.0,65523.0,0.48388654]
[1727594587439,0.0136,65524.0,65523.0,0.56021144]
[1727594587646,0.0136,65524.0,65523.0,0.56028692]
[1727594587832,0.0136,65524.0,65523.0,0.72733223]
[1727594588032,0.0136,65524.0,65523.0,0.72733225]
[1727594588740,0.0136,65524.0,65523.0,0.84733225]
[1727594588942,0.0136,65524.0,65523.0,0.77100733]
[1727594589644,0.0136,65524.0,65523.0,0.84733328]
[1727594589942,0.0136,65524.0,65523.0,0.75421665]
[1727594590445,0.0136,65524.0,65523.0,0.84736987]
[1727594590744,0.0136,65524.0,65523.0,0.75421665]
[1727594592536,0.0136,65524.0,65523.0,0.39341665]
[1727594592843,0.0136,65524.0,65523.0,0.75421665]
[1727594593246,0.0136,65524.0,65523.0,0.84730804]
[1727594593741,0.0136,65524.0,65523.0,0.77098209]
[1727594595244,0.0136,65524.0,65523.0,0.6778907]
[1727594598343,0.0136,65524.0,65523.0,0.3170907]
[1727594598549,0.0136,65524.0,65523.0,0.6778907]
[1727594600748,0.0136,65524.0,65523.0,0.3170907]
[1727594601136,0.0136,65524.0,65523.0,0.6778907]
[1727594603140,0.0136,65524.0,65523.0,0.77100283]
[1727594604146,0.0136,65524.0,65523.0,0.41020283]
[1727594604354,0.0136,65524.0,65523.0,0.77100283]
[1727594604738,0.0136,65524.0,65523.0,0.41020283]
[1727594604938,0.0136,65524.0,65523.0,0.77100283]
[1727594606448,0.0136,65524.0,65523.0,0.77099709]
[1727594606647,0.0136,65524.0,65523.0,0.41019709]
[1727594607051,0.0136,65524.0,65523.0,0.77099709]
[1727594607446,0.0136,65524.0,65523.0,0.7273279]
[1727594607643,0.0136,65524.0,65523.0,0.5578907]
[1727594607954,0.1336,65524.0,65523.0,0.39084539]
[1727594608452,0.1336,65524.0,65520.0,0.06106875]
[1727594608453,0.076299,65521.0,65520.0,0.06106875]
[1727594608651,0.076299,65521.0,65518.0,0.06106875]
[1727594608652,0.076302,65519.0,65518.0,0.06106875]
[1727594608950,0.076302,65519.0,65516.0,0.00030175]
[1727594608951,0.306302,65519.0,65517.0,0.06106875]
[1727594609542,0.306302,65519.0,65516.0,0.0613705]
[1727594609543,0.076304,65517.0,65516.0,0.0613705]
[1727594609855,0.186304,65517.0,65516.0,0.0613705]
[1727594610246,0.186304,65517.0,65516.0,0.00030175]
[1727594611348,0.187304,65517.0,65516.0,0.00030175]
[1727594613955,0.187304,65517.0,65516.0,0.12030175]
[1727594614260,0.188304,65517.0,65516.0,0.12030175]
[1727594614452,0.188304,65517.0,65516.0,0.2945108]
[1727594618965,0.112,65517.0,65516.0,0.7523908]
[1727594619262,0.076297,65523.0,65517.0,0.076304]
[1727594619557,0.076297,65523.0,65522.0,0.12]
[1727594619558,0.086297,65523.0,65522.0,0.12]
[1727594619956,0.086297,65523.0,65522.0,0.32229106]
[1727594620662,0.087297,65523.0,65522.0,0.32229106]
[1727594621767,0.088297,65523.0,65522.0,0.32229106]
[1727594623273,0.012,65523.0,65522.0,0.32229106]
[1727594623481,0.011,65523.0,65522.0,0.32229106]
[1727594623979,0.076299,65521.0,65520.0,0.0609468]
[1727594624279,0.076299,65521.0,65516.0,0.00030175]
[1727594624280,0.1,65521.0,65516.0,0.00030175]
[1727594624673,0.1,65521.0,65517.0,0.17047032]
[1727594624976,0.1,65521.0,65516.0,0.00030175]
[1727594624977,0.12,65518.0,65516.0,0.00030175]
[1727594625183,0.296303,65518.0,65516.0,0.00030175]
[1727594629280,0.297303,65518.0,65516.0,0.00030175]
[1727594629878,0.177303,65518.0,65516.0,0.12030175]
[1727594631077,0.178303,65518.0,65516.0,0.12030175]
[1727594636482,0.178303,65518.0,65517.0,0.1743881]
[1727594636483,0.102,65518.0,65517.0,0.1743881]
[1727594636700,0.102,65518.0,65517.0,0.23535246]
[1727594637190,0.102,65518.0,65517.0,0.1743881]
[1727594637487,0.102,65518.0,65517.0,0.70452137]
[1727594637686,0.102,65518.0,65517.0,0.61136995]
[1727594637886,0.102,65518.0,65517.0,0.70452531]
[1727594638083,0.101,65518.0,65517.0,0.70452531]
[1727594638286,0.102,65518.0,65517.0,0.70452531]
[1727594638484,0.102,65518.0,65517.0,0.61136995]
[1727594638789,0.102,65518.0,65517.0,0.5351881]
[1727594639185,0.102,65518.0,65517.0,0.61136995]
[1727594639386,0.102,65518.0,65517.0,0.5351881]
[1727594640190,0.102,65518.0,65517.0,0.61136995]
[1727594640391,0.102,65518.0,65517.0,0.5351881]
[1727594644595,0.102,65518.0,65517.0,0.61136995]
[1727594645306,0.102,65518.0,65517.0,0.73136995]
[1727594646494,0.102,65518.0,65517.0,0.43698185]
[1727594646689,0.102,65518.0,65517.0,0.3608]
[1727594648097,0.222,65518.0,65517.0,0.3608]
[1727594648592,0.222,65518.0,65517.0,0.06105101]
[1727594648900,0.222,65518.0,65516.0,0.00030175]
[1727594648901,0.298304,65518.0,65516.0,0.00030175]
[1727594650691,0.297304,65518.0,65516.0,0.00030175]
[1727594650892,0.298304,65518.0,65516.0,0.00030175]
[1727594655795,0.298304,65518.0,65517.0,0.06105101]
[1727594657505,0.298304,65518.0,65516.0,0.06135276]
[1727594658095,0.178304,65518.0,65516.0,0.06135276]
[1727594658306,0.178304,65518.0,65517.0,0.06105101]
[1727594658595,0.102,65518.0,65517.0,0.06105101]
[1727594658793,0.102,65518.0,65516.0,0.10930675]
[1727594659799,0.101,65518.0,65516.0,0.10930675]
[1727594660099,0.102,65518.0,65516.0,0.10930675]
[1727594662698,0.178304,65518.0,65516.0,0.03300175]
[1727594663507,0.177304,65518.0,65516.0,0.03300175]
[1727594663697,0.178304,65518.0,65516.0,0.03300175]
[1727594664004,0.178304,65518.0,65516.0,0.00030175]
[1727594670816,0.12,65517.0,65516.0,0.06132123]
[1727594671016,0.23,65517.0,65516.0,0.06132123]
[1727594671412,0.23,65517.0,65516.0,0.00030175]
[1727594672120,0.231,65517.0,65516.0,0.00030175]
[1727594672715,0.232,65517.0,65516.0,0.00030175]
[1727594675018,0.308304,65517.0,65516.0,0.00030175]
[1727594676822,0.232,65517.0,65511.0,0.3644]
[1727594677022,0.19631,65512.0,65511.0,0.3608]
[1727594677326,0.30631,65512.0,65511.0,0.3608]
[1727594681122,0.30731,65512.0,65511.0,0.3608]
[1727594681508,0.30731,65512.0,65511.0,0.02798188]
[1727594681711,0.076312,65511.0,65508.0,0.10938185]
[1727594681915,0.076313,65510.0,65508.0,0.10938185]
[1727594682126,0.176313,65510.0,65508.0,0.10938185]
[1727594682322,0.176313,65510.0,65508.0,0.0332]
[1727594684828,0.177313,65510.0,65508.0,0.0332]
[1727594685931,0.178313,65510.0,65508.0,0.0332]
[1727594686625,0.178313,65510.0,65508.0,0.0607098]
[1727594689934,0.12,65509.0,65508.0,0.0275098]
[1727594690236,0.12,65509.0,65504.0,0.3616]
[1727594690237,0.22,65509.0,65504.0,0.3616]
[1727594690439,0.22,65509.0,65504.0,0.3608]
[1727594690641,0.12,65505.0,65504.0,0.3608]
[1727594690936,0.23,65505.0,65504.0,0.3608]
[1727594691729,0.23,65505.0,65504.0,0.38830747]
[1727594692432,0.23,65505.0,65504.0,0.02750747]
[1727594692636,0.23,65505.0,65499.0,0.12]
[1727594693030,0.23,65505.0,65500.0,0.16569363]
[1727594693542,0.076322,65502.0,65500.0,0.16569363]
[1727594693838,0.106322,65502.0,65500.0,0.16569363]
[1727594697636,0.107322,65502.0,65500.0,0.16569363]
[1727594698743,0.108322,65502.0,65500.0,0.16569363]
[1727594702633,0.228322,65502.0,65500.0,0.16569363]
[1727594703327,0.032,65502.0,65500.0,0.16569363]
[1727594703530,0.032,65502.0,65501.0,0.12]
[1727594704440,0.032,65502.0,65501.0,0.46531124]
[1727594704639,0.031,65502.0,65501.0,0.46531124]
[1727594704838,0.032,65502.0,65501.0,0.38912939]
[1727594705840,0.3608,65516.0,65501.0,1.20792939]
[1727594706038,0.1036,65513.0,65512.0,0.55711]
[1727594706237,0.1,65513.0,65512.0,0.55711]
[1727594706449,0.1,65513.0,65512.0,0.71964994]
[1727594707543,0.0036,65521.0,65512.0,0.71964994]
[1727594707544,0.0036,65521.0,65515.0,0.076305]
[1727594707737,0.1,65521.0,65520.0,0.12]
[1727594710039,0.1,65521.0,65520.0,0.122]
[1727594710839,0.1,65521.0,65520.0,0.4828]
[1727594711142,0.3608,65528.0,65526.0,0.076293]
[1727594711348,0.3608,65528.0,65527.0,0.1516]
[1727594711349,0.4108,65528.0,65527.0,0.1516]
[1727594711948,0.05,65528.0,65527.0,0.1516]
[1727594712944,0.057,65528.0,65527.0,0.1516]
[1727594713338,0.007,65528.0,65527.0,0.1516]
[1727594713547,0.017,65528.0,65527.0,0.1516]
[1727594714555,0.018,65528.0,65527.0,0.1516]
[1727594716852,0.018,65528.0,65527.0,0.1526]
[1727594717547,0.018,65528.0,65527.0,0.5134]
[1727594717857,0.02,65528.0,65527.0,0.5134]
[1727594718047,0.02,65528.0,65527.0,0.54136099]
[1727594718357,0.018,65528.0,65527.0,0.54036099]
[1727594720552,0.018,65528.0,65527.0,0.70806004]
[1727594720948,0.018,65528.0,65527.0,0.67646004]
[1727594721154,0.018,65528.0,65527.0,0.16769905]
[1727594721452,0.018,65528.0,65521.0,0.4852]
[1727594721649,0.018,65528.0,65521.0,0.4844]
[1727594721850,0.0504,65528.0,65522.0,0.16552507]